bitfinex/quotes_BTCUSD_20240927
["timestamp","ask_amount","ask_price","bid_price","bid_amount"]
[1727444020073,0.33041094,65736.0,65735.0,0.002]
[1727444020294,0.023,65735.0,65724.0,0.0786]
[1727444020512,0.023,65735.0,65719.0,0.000828]
[1727444020513,0.38319605,65734.0,65719.0,0.000828]
[1727444020750,0.304277,65730.0,65719.0,0.000828]
[1727444021011,0.023,65728.0,65719.0,0.000828]
[1727444021202,0.023,65726.0,65721.0,0.152156]
[1727444021419,0.15528794,65725.0,65720.0,0.152158]
[1727444021631,0.15528794,65725.0,65721.0,0.304312]
[1727444021851,0.15528794,65725.0,65719.0,0.000828]
[1727444022073,0.15528794,65725.0,65721.0,0.152157]
[1727444022289,0.15528794,65725.0,65719.0,0.305152]
[1727444022506,0.15528794,65725.0,65724.0,0.152151]
[1727444022719,0.15528794,65725.0,65723.0,0.152152]
[1727444022921,0.16228794,65725.0,65723.0,0.152153]
[1727444023358,0.15528794,65725.0,65721.0,0.304316]
[1727444023595,0.16228794,65725.0,65722.0,0.152154]
[1727444023808,0.16228794,65725.0,65722.0,0.152153]
[1727444024241,0.16628794,65725.0,65719.0,0.000828]
[1727444024460,0.16628794,65725.0,65722.0,0.152154]
[1727444024687,0.16628794,65725.0,65723.0,0.152152]
[1727444024937,0.16628794,65725.0,65722.0,0.152154]
[1727444025118,0.16628794,65725.0,65723.0,0.152152]
[1727444025374,0.16628794,65725.0,65721.0,0.304316]
[1727444025375,0.15928794,65725.0,65722.0,0.456466]
[1727444025588,0.15528794,65725.0,65721.0,0.304316]
[1727444025802,0.16228794,65725.0,65721.0,0.304316]
[1727444026031,0.16628794,65725.0,65724.0,0.152151]
[1727444026280,0.16628794,65725.0,65721.0,0.30735897]
[1727444026281,0.16628794,65725.0,65721.0,0.304316]
[1727444026506,0.023,65724.0,65719.0,0.000828]
[1727444026729,0.22790811,65732.0,65719.0,0.000828]
[1727444026730,0.17516,65720.0,65719.0,0.000828]
[1727444026949,0.33044794,65720.0,65719.0,0.000828]
[1727444028920,0.33644794,65720.0,65719.0,0.000828]
[1727444029599,0.33044794,65720.0,65719.0,0.000828]
[1727444029825,0.33744794,65720.0,65719.0,0.001828]
[1727444030282,0.33744794,65720.0,65719.0,0.000828]
[1727444030283,0.33044794,65720.0,65719.0,0.000828]
[1727444030514,0.1522,65703.0,65702.0,0.000828]
[1727444030737,0.33048794,65703.0,65702.0,0.000828]
[1727444031185,0.43048794,65703.0,65702.0,0.000828]
[1727444031855,0.33048794,65703.0,65702.0,0.000828]
[1727444033173,0.34348794,65703.0,65702.0,0.001828]
[1727444033999,0.35748794,65703.0,65702.0,0.001828]
[1727444034003,0.20528794,65703.0,65702.0,0.001828]
[1727444034785,0.19228794,65703.0,65702.0,0.000828]
[1727444035184,0.17828794,65703.0,65702.0,0.000828]
[1727444035407,0.15528794,65703.0,65702.0,0.15303]
[1727444035635,0.013,65703.0,65702.0,0.001828]
[1727444035850,0.013,65703.0,65702.0,0.15707371]
[1727444036063,0.026,65703.0,65702.0,0.15707371]
[1727444036272,0.013,65703.0,65702.0,0.15607371]
[1727444036499,0.22790811,65715.0,65703.0,0.304399]
[1727444036710,0.22790811,65715.0,65713.0,0.152176]
[1727444036711,0.15528794,65714.0,65713.0,0.152176]
[1727444036922,0.15528794,65714.0,65710.0,0.304367]
[1727444037148,0.15528794,65714.0,65713.0,0.152176]
[1727444037367,0.22790811,65721.0,65720.0,0.15216]
[1727444037589,0.15528794,65721.0,65720.0,0.15216]
[1727444038863,0.16028794,65721.0,65720.0,0.15216]
[1727444039127,0.16328794,65721.0,65720.0,0.15216]
[1727444039356,0.003,65721.0,65720.0,0.15216]
[1727444039808,0.004,65721.0,65720.0,0.15216]
[1727444040529,0.001,65721.0,65720.0,0.15216]
[1727444041199,0.22790811,65732.0,65731.0,0.152135]
[1727444041412,0.38319605,65732.0,65731.0,0.152135]
[1727444041642,0.023,65731.0,65716.0,0.456236]
[1727444041861,0.304284,65728.0,65715.0,0.1]
[1727444042090,0.175147,65726.0,65721.0,0.152157]
[1727444042294,0.30743694,65725.0,65720.0,0.152159]
[1727444042512,0.30743694,65725.0,65711.0,0.0811]
[1727444042513,0.22790811,65724.0,65711.0,0.0811]
[1727444042723,0.023,65722.0,65712.0,0.22790811]
[1727444042938,0.15828794,65721.0,65717.0,0.152167]
[1727444043358,0.15528794,65721.0,65711.0,0.0811]
[1727444043564,0.15528794,65721.0,65720.0,0.15216]
[1727444043853,0.15528794,65721.0,65720.0,0.001]
[1727444044069,0.023,65720.0,65705.0,0.000828]
[1727444044312,0.023,65714.0,65705.0,0.000828]
[1727444044519,0.15219,65708.0,65705.0,0.000828]
[1727444044727,0.17828794,65707.0,65705.0,0.000828]
[1727444044937,0.175193,65706.0,65705.0,0.000828]
[1727444045154,0.33048094,65706.0,65705.0,0.000828]
[1727444046476,0.33048094,65706.0,65705.0,0.003828]
[1727444046928,0.33048094,65706.0,65702.0,0.000828]
[1727444046929,0.1802,65703.0,65702.0,0.000828]
[1727444047138,0.33548794,65703.0,65702.0,0.000828]
[1727444048028,0.33048794,65703.0,65702.0,0.000828]
[1727444049155,0.34448794,65703.0,65702.0,0.001828]
[1727444049571,0.35748794,65703.0,65702.0,0.001828]
[1727444049581,0.34448794,65703.0,65702.0,0.001828]
[1727444049975,0.35848794,65703.0,65702.0,0.001828]
[1727444051541,0.34448794,65703.0,65702.0,0.000828]
[1727444051764,0.35848794,65703.0,65702.0,0.001828]
[1727444052198,0.33048794,65703.0,65702.0,0.000828]
[1727444052621,0.33648794,65703.0,65702.0,0.000828]
[1727444052835,0.34448794,65703.0,65702.0,0.000828]
[1727444055943,0.16928794,65703.0,65702.0,0.000828]
[1727444056395,0.16928794,65703.0,65702.0,0.15303]
[1727444057297,0.014,65703.0,65702.0,0.15303]
[1727444057512,0.014,65703.0,65702.0,0.15607369]
[1727444058188,0.008,65703.0,65702.0,0.15607369]
[1727444058413,0.008,65703.0,65702.0,0.15707369]
[1727444058635,0.324329,65719.0,65702.0,0.00487169]
[1727444058636,0.22790811,65717.0,65702.0,0.00487169]
[1727444058916,0.22790811,65717.0,65716.0,0.231369]
[1727444059284,0.22790811,65724.0,65716.0,0.231369]
[1727444059285,0.22790811,65724.0,65719.0,0.304322]
[1727444059524,0.22790811,65731.0,65722.0,0.152156]
[1727444059756,0.22790811,65731.0,65723.0,0.456456]
[1727444059757,0.22790811,65724.0,65723.0,0.456456]
[1727444059981,0.30742694,65730.0,65724.0,0.152149]
[1727444060206,0.30742694,65730.0,65716.0,0.535707]
[1727444060207,0.002,65717.0,65716.0,0.535707]
[1727444060433,0.15528794,65730.0,65716.0,0.383538]
[1727444060657,0.15528794,65730.0,65717.0,0.00304281]
[1727444060879,0.023,65729.0,65717.0,0.00304281]
[1727444061102,0.15528794,65728.0,65726.0,0.152145]
[1727444061332,0.15528794,65728.0,65726.0,0.152146]
[1727444061558,0.15528794,65728.0,65724.0,0.001]
[1727444061559,0.17828794,65728.0,65727.0,0.152144]
[1727444062648,0.007,65729.0,65728.0,0.152142]
[1727444062893,0.007,65729.0,65728.0,0.23088426]
[1727444063378,0.007,65729.0,65728.0,0.33088426]
[1727444063606,0.22790811,65741.0,65728.0,0.1757]
[1727444063835,0.22790811,65734.0,65733.0,0.15213]
[1727444064085,0.023,65739.0,65733.0,0.304259]
[1727444064330,0.15528794,65738.0,65733.0,0.304259]
[1727444064582,0.15528794,65738.0,65729.0,0.00304229]
[1727444064887,0.15528794,65738.0,65736.0,0.152121]
[1727444065122,0.15528794,65738.0,65731.0,0.30427]
[1727444065341,0.023,65737.0,65728.0,0.0787]
[1727444065568,0.30741094,65736.0,65732.0,0.152131]
[1727444065772,0.15528794,65736.0,65732.0,0.152131]
[1727444066014,0.15528794,65736.0,65730.0,0.304274]
[1727444066015,0.001,65734.0,65733.0,0.156129]
[1727444066243,0.15528794,65734.0,65733.0,0.153129]
[1727444066467,0.006,65738.0,65737.0,0.152121]
[1727444066685,0.006,65738.0,65737.0,0.15516309]
[1727444067371,0.006,65738.0,65736.0,0.152122]
[1727444067585,0.152114,65740.0,65736.0,0.152123]
[1727444067807,0.006,65736.0,65732.0,0.001]
[1727444068026,0.15528794,65735.0,65732.0,0.001]
[1727444068235,0.15528794,65735.0,65733.0,0.15213]
[1727444068463,0.15528794,65735.0,65733.0,0.1521212]
[1727444068668,0.15528794,65735.0,65730.0,0.304273]
[1727444068669,0.15528794,65735.0,65734.0,0.152128]
[1727444068888,0.15528794,65735.0,65728.0,0.0757]
[1727444068889,0.008,65738.0,65733.0,0.00304243]
[1727444069117,0.22790811,65736.0,65733.0,0.00304243]
[1727444069316,0.023,65742.0,65728.0,0.0757]
[1727444069524,0.001,65738.0,65737.0,0.152121]
[1727444069744,0.15528794,65741.0,65740.0,0.152114]
[1727444070376,0.15528794,65741.0,65731.0,0.304266]
[1727444070574,0.15528794,65741.0,65740.0,0.152114]
[1727444070789,0.15528794,65741.0,65738.0,0.456352]
[1727444071015,0.15528794,65741.0,65729.0,0.304278]
[1727444071226,0.15528794,65741.0,65728.0,0.0757]
[1727444071449,0.003,65735.0,65734.0,0.152128]
[1727444071876,0.15528794,65741.0,65734.0,0.304256]
[1727444072101,0.16028794,65741.0,65735.0,0.304251]
[1727444072347,0.16728794,65741.0,65728.0,0.0757]
[1727444072588,0.15528794,65741.0,65728.0,0.0757]
[1727444072791,0.15528794,65741.0,65736.0,0.152122]
[1727444073006,0.15528794,65741.0,65728.0,0.0757]
[1727444073007,0.023,65740.0,65732.0,0.304264]
[1727444073245,0.152126,65735.0,65730.0,0.304273]
[1727444073469,0.023,65733.0,65728.0,0.0757]
[1727444073700,0.012,65741.0,65721.0,0.1]
[1727444073701,0.152149,65725.0,65721.0,0.1]
[1727444073926,0.304281,65729.0,65723.0,0.152152]
[1727444074155,0.15528794,65728.0,65722.0,0.152154]
[1727444074373,0.152147,65726.0,65721.0,0.1]
[1727444074578,0.15528794,65726.0,65723.0,0.152152]
[1727444074790,0.15528794,65726.0,65725.0,0.152149]
[1727444075259,0.53215811,65736.0,65723.0,0.00304286]
[1727444075260,0.22790811,65736.0,65723.0,0.00304286]
[1727444075510,0.22790811,65736.0,65723.0,0.10304286]
[1727444075511,0.001,65726.0,65723.0,0.10304286]
[1727444075719,0.001,65726.0,65725.0,0.252149]
[1727444075939,0.001,65726.0,65725.0,0.25519146]
[1727444076158,0.15528794,65735.0,65732.0,0.304265]
[1727444076392,0.15528794,65735.0,65734.0,0.152128]
[1727444077456,0.15528794,65735.0,65732.0,0.304265]
[1727444077679,0.15528794,65735.0,65733.0,0.15213]
[1727444077894,0.023,65733.0,65722.0,0.1526]
[1727444078106,0.152136,65731.0,65727.0,0.152143]
[1727444078323,0.15528794,65730.0,65725.0,0.304296]
[1727444078565,0.15528794,65730.0,65729.0,0.152139]
[1727444078816,0.15528794,65730.0,65725.0,0.001]
[1727444079031,0.15528794,65730.0,65726.0,0.304291]
[1727444079249,0.15528794,65730.0,65719.0,0.381053]
[1727444079250,0.15528794,65730.0,65722.0,0.30431]
[1727444079455,0.15528794,65730.0,65727.0,0.153142]
[1727444080769,0.15528794,65730.0,65728.0,0.152142]
[1727444080974,0.15528794,65730.0,65726.0,0.152145]
[1727444081196,0.15528794,65730.0,65726.0,0.005]
[1727444081412,0.15528794,65730.0,65729.0,0.152139]
[1727444082691,0.304224,65741.0,65736.0,0.152122]
[1727444082692,0.023,65740.0,65736.0,0.152122]
[1727444082904,0.023,65738.0,65729.0,0.00804243]
[1727444083123,0.304227,65741.0,65729.0,0.00804243]
[1727444083124,0.023,65736.0,65729.0,0.00804243]
[1727444083338,0.15528794,65735.0,65734.0,0.152128]
[1727444084195,0.22790811,65742.0,65735.0,0.0832]
[1727444084419,0.172101,65746.0,65740.0,0.152114]
[1727444084420,0.38319605,65741.0,65740.0,0.152114]
[1727444084643,0.38319605,65741.0,65736.0,0.00404211]
[1727444084644,0.22790811,65750.0,65745.0,0.304203]
[1727444084863,0.15528794,65749.0,65748.0,0.152095]
[1727444085083,0.15528794,65749.0,65735.0,0.387451]
[1727444085084,0.001656,65754.0,65753.0,0.152084]
[1727444085364,0.15694394,65754.0,65753.0,0.152084]
[1727444085791,0.15694394,65754.0,65752.0,0.152084]
[1727444086004,0.15528794,65753.0,65751.0,0.152088]
[1727444086239,0.15528794,65753.0,65752.0,0.152086]
[1727444088361,0.15694194,65753.0,65752.0,0.152086]
[1727444088581,0.15794194,65753.0,65752.0,0.152086]
[1727444089215,0.15794194,65753.0,65750.0,0.304179]
[1727444089216,0.16094194,65753.0,65751.0,0.152088]
[1727444089640,0.16094194,65753.0,65752.0,0.152086]
[1727444089868,0.16094194,65753.0,65736.0,0.22790811]
[1727444090082,0.023,65752.0,65739.0,0.304231]
[1727444090336,0.30737794,65751.0,65747.0,0.152097]
[1727444090546,0.30737794,65751.0,65739.0,0.304231]
[1727444090547,0.15528794,65751.0,65739.0,0.304231]
[1727444090768,0.30737694,65751.0,65740.0,0.1]
[1727444090981,0.15528794,65751.0,65748.0,0.152095]
[1727444091198,0.15528794,65751.0,65749.0,0.152092]
[1727444091404,0.15528794,65751.0,65750.0,0.152091]
[1727444091640,0.15528794,65751.0,65748.0,0.456284]
[1727444091860,0.152091,65750.0,65740.0,0.1]
[1727444092110,0.15528794,65751.0,65748.0,0.002]
[1727444092111,0.45947594,65749.0,65748.0,0.002]
[1727444092334,0.63456894,65749.0,65748.0,0.002]
[1727444092550,0.48247594,65749.0,65735.0,0.387449]
[1727444092769,0.023,65742.0,65740.0,0.152114]
[1727444092978,0.15528794,65741.0,65740.0,0.155114]
[1727444094889,0.15528794,65741.0,65740.0,0.152114]
[1727444095331,0.15528794,65741.0,65740.0,0.154114]
[1727444095974,0.15528794,65741.0,65740.0,0.152114]
[1727444096415,0.15528794,65741.0,65740.0,0.003]
[1727444096631,0.15528794,65741.0,65740.0,0.008]
[1727444096836,0.30739994,65741.0,65740.0,0.008]
[1727444097080,0.33039994,65741.0,65740.0,0.008]
[1727444098115,0.33039994,65741.0,65740.0,0.003]
[1727444098350,0.17828794,65741.0,65740.0,0.003]
[1727444098603,0.33039994,65741.0,65740.0,0.003]
[1727444098845,0.33739994,65741.0,65740.0,0.003]
[1727444099087,0.023,65740.0,65737.0,0.15212]
[1727444099297,0.15528794,65739.0,65737.0,0.304241]
[1727444099530,0.15528794,65739.0,65735.0,0.152125]
[1727444099758,0.15528794,65739.0,65733.0,0.304261]
[1727444099985,0.30740394,65739.0,65734.0,0.304254]
[1727444100211,0.15528794,65739.0,65734.0,0.152127]
[1727444100454,0.15528794,65739.0,65732.0,0.304265]
[1727444100701,0.04501825,65751.0,65749.0,0.152093]
[1727444100943,0.04501825,65751.0,65738.0,0.076]
[1727444100944,0.22956211,65753.0,65752.0,0.152086]
[1727444101183,0.38485005,65753.0,65752.0,0.152086]
[1727444101456,0.001654,65753.0,65752.0,0.152086]
[1727444101729,0.001654,65753.0,65752.0,0.228086]
[1727444102424,0.15894194,65753.0,65746.0,0.387098]
[1727444102668,0.15528794,65752.0,65751.0,0.152088]
[1727444103835,0.15528794,65752.0,65747.0,0.152097]
[1727444104082,0.023,65751.0,65747.0,0.152097]
[1727444104344,0.023,65749.0,65747.0,0.152097]
[1727444104581,0.15528794,65748.0,65747.0,0.152097]
[1727444104805,0.04523303,65752.0,65751.0,0.152088]
[1727444105033,0.15728794,65752.0,65751.0,0.152088]
[1727444105254,0.15528794,65752.0,65751.0,0.152088]
[1727444105484,0.04688703,65753.0,65752.0,0.152086]
[1727444105725,0.001654,65753.0,65752.0,0.152086]
[1727444106177,0.15694194,65753.0,65752.0,0.152086]
[1727444106629,0.15694194,65753.0,65748.0,0.304188]
[1727444106867,0.15528794,65752.0,65749.0,0.152091]
[1727444107088,0.15528794,65752.0,65746.0,0.3042]
[1727444107308,0.15528794,65752.0,65749.0,0.152092]
[1727444107524,0.15528794,65752.0,65746.0,0.3042]
[1727444107733,0.15528794,65752.0,65745.0,0.304202]
[1727444107734,0.023,65751.0,65745.0,0.304202]
[1727444107949,0.023,65751.0,65740.0,0.0758]
[1727444107950,0.152099,65747.0,65743.0,0.152106]
[1727444108166,0.15528794,65746.0,65743.0,0.152106]
[1727444108386,0.15528794,65746.0,65729.0,0.000827]
[1727444108387,0.023,65743.0,65729.0,0.000827]
[1727444108631,0.175128,65734.0,65729.0,0.000827]
[1727444108867,0.69201812,65734.0,65729.0,0.000827]
[1727444109104,1.09746878,65734.0,65729.0,0.000827]
[1727444109346,0.95196067,65734.0,65729.0,0.000827]
[1727444109572,0.152137,65730.0,65729.0,0.000827]
[1727444109805,0.005,65725.0,65712.0,0.22790811]
[1727444110038,0.33044794,65720.0,65712.0,0.22790811]
[1727444110269,0.5788775,65720.0,65712.0,0.22790811]
[1727444110492,0.5788775,65720.0,65701.0,0.304409]
[1727444110924,0.86959267,65720.0,65701.0,0.304405]
[1727444111181,0.86959267,65720.0,65706.0,0.152192]
[1727444111651,0.86959267,65720.0,65708.0,0.152187]
[1727444111652,0.5788775,65720.0,65708.0,0.152187]
[1727444111884,0.5788775,65720.0,65706.0,0.304385]
[1727444111885,0.39822023,65720.0,65709.0,0.152185]
[1727444112121,0.33044794,65720.0,65710.0,0.152183]
[1727444112362,0.33044794,65720.0,65702.0,0.22873611]
[1727444112576,0.62116311,65720.0,65703.0,0.152199]
[1727444112829,0.70291416,65720.0,65719.0,0.001828]
[1727444113104,0.63116311,65720.0,65719.0,0.001828]
[1727444113395,0.71191416,65720.0,65719.0,0.001828]
[1727444113632,0.75706773,65720.0,65719.0,0.001828]
[1727444113892,0.68931791,65720.0,65719.0,0.001828]
[1727444114370,0.64416311,65720.0,65719.0,0.001828]
[1727444114812,0.71189531,65720.0,65719.0,0.001828]
[1727444115025,0.64416311,65720.0,65719.0,0.001828]
[1727444117756,0.17828794,65720.0,65719.0,0.001828]
[1727444118199,0.17828794,65720.0,65719.0,0.15399]
[1727444118660,0.16528794,65720.0,65719.0,0.15399]
[1727444118890,0.22790811,65729.0,65725.0,0.152149]
[1727444119110,0.15528794,65728.0,65725.0,0.152149]
[1727444119816,0.15528794,65728.0,65720.0,0.304321]
[1727444120041,0.15528794,65728.0,65724.0,0.152149]
[1727444120477,0.023,65727.0,65723.0,0.152153]
[1727444120707,0.30743094,65728.0,65723.0,0.152151]
[1727444120708,0.15528794,65726.0,65723.0,0.152151]
[1727444121192,0.15528794,65726.0,65724.0,0.152151]
[1727444121440,0.15528794,65726.0,65725.0,0.152149]
[1727444121673,0.17828794,65726.0,65725.0,0.152149]
[1727444122113,0.17828794,65726.0,65723.0,0.304306]
[1727444122343,0.17828794,65726.0,65724.0,0.15215]
[1727444122344,0.17928794,65726.0,65724.0,0.15215]
[1727444122812,0.18128794,65726.0,65724.0,0.15215]
[1727444123034,0.17828794,65726.0,65723.0,0.152152]
[1727444123253,0.152152,65724.0,65720.0,0.15216]
[1727444123518,0.15828794,65726.0,65719.0,0.000828]
[1727444123519,0.023,65722.0,65719.0,0.000828]
[1727444123748,0.17516,65720.0,65719.0,0.000828]
[1727444123992,0.33044794,65720.0,65719.0,0.000828]
[1727444124642,0.17828794,65720.0,65719.0,0.000828]
[1727444125552,0.33044794,65720.0,65719.0,0.000828]
[1727444125790,0.33644794,65720.0,65719.0,0.000828]
[1727444126064,0.33944794,65720.0,65719.0,0.000828]
[1727444126633,0.175186,65709.0,65705.0,0.38010111]
[1727444126845,0.304349,65714.0,65705.0,0.38010111]
[1727444126846,0.023,65707.0,65705.0,0.22790811]
[1727444127051,0.15528794,65706.0,65705.0,0.152195]
[1727444128143,0.15628794,65706.0,65705.0,0.152195]
[1727444128344,0.15628794,65706.0,65703.0,0.0785]
[1727444128628,0.15628794,65706.0,65705.0,0.152195]
[1727444129299,0.15628794,65706.0,65705.0,0.159195]
[1727444129507,0.15528794,65706.0,65705.0,0.007]
[1727444129717,0.15528794,65706.0,65703.0,0.230698]
[1727444129956,0.15928794,65706.0,65704.0,0.152197]
[1727444130176,0.16128794,65706.0,65703.0,0.0785]
[1727444130387,0.16128794,65706.0,65702.0,0.000828]
[1727444130388,0.152197,65705.0,65702.0,0.000828]
[1727444130599,0.15528794,65704.0,65702.0,0.000828]
[1727444130800,0.15528794,65704.0,65703.0,0.1522]
[1727444131244,0.15528794,65704.0,65702.0,0.000828]
[1727444131463,0.1752,65703.0,65702.0,0.000828]
[1727444131703,0.33048794,65703.0,65702.0,0.000828]
[1727444132589,0.33148794,65703.0,65702.0,0.000828]
[1727444132827,0.33148794,65703.0,65702.0,0.001828]
[1727444133301,0.33648794,65703.0,65702.0,0.001828]
[1727444133577,0.51438794,65703.0,65702.0,0.001828]
[1727444133837,0.175232,65689.0,65688.0,0.000829]
[1727444134095,0.33051994,65689.0,65688.0,0.000829]
[1727444134610,0.62123511,65689.0,65688.0,0.000829]
[1727444135547,0.63223511,65689.0,65688.0,0.000829]
[1727444136055,0.89573511,65689.0,65688.0,0.000829]
[1727444136271,0.91973511,65689.0,65688.0,0.000829]
[1727444136544,0.005,65683.0,65664.0,0.22790811]
[1727444136761,0.175281,65668.0,65664.0,0.22790811]
[1727444137188,0.175281,65668.0,65662.0,0.1651451]
[1727444137616,0.175281,65668.0,65662.0,0.0128511]
[1727444137827,0.17828794,65668.0,65662.0,0.0128511]
[1727444138040,0.33056894,65668.0,65662.0,0.1651431]
[1727444138250,0.33056894,65668.0,65662.0,0.0128511]
[1727444139132,0.33356894,65668.0,65662.0,0.0128511]
[1727444139543,0.17828794,65668.0,65664.0,0.152289]
[1727444139782,0.17828794,65668.0,65662.0,0.0128511]
[1727444140004,0.33056894,65668.0,65662.0,0.1651441]
[1727444140232,0.33056894,65668.0,65662.0,0.0128511]
[1727444140442,0.15528794,65668.0,65667.0,0.15311]
[1727444140874,0.4734,65684.0,65670.0,0.304553]
[1727444140875,0.22790811,65675.0,65670.0,0.304553]
[1727444141081,0.15528794,65674.0,65672.0,0.15227]
[1727444141582,0.15528794,65674.0,65670.0,0.152274]
[1727444141838,0.15528794,65674.0,65668.0,0.304561]
[1727444141839,0.15528794,65674.0,65671.0,0.152273]
[1727444142082,0.15528794,65674.0,65668.0,0.304561]
[1727444142329,0.15528794,65674.0,65669.0,0.304556]
[1727444142565,0.15528794,65674.0,65672.0,0.152271]
[1727444142821,0.15528794,65674.0,65670.0,0.304551]
[1727444142822,0.15628794,65674.0,65673.0,0.152269]
[1727444143886,0.15628794,65674.0,65670.0,0.304551]
[1727444143887,0.15628794,65674.0,65672.0,0.15227]
[1727444144331,0.15628794,65674.0,65669.0,0.304556]
[1727444144332,0.15528794,65674.0,65669.0,0.304556]
[1727444144540,0.15528794,65674.0,65673.0,0.152269]
[1727444144756,0.15628794,65674.0,65673.0,0.152269]
[1727444144960,0.15528794,65674.0,65673.0,0.152269]
[1727444145370,0.15628794,65674.0,65673.0,0.152269]
[1727444145587,0.15528794,65674.0,65673.0,0.152269]
[1727444145796,0.777864,65690.0,65677.0,0.0768]
[1727444146008,0.304454,65692.0,65677.0,0.0768]
[1727444146009,0.15528794,65682.0,65677.0,0.0768]
[1727444146440,0.15528794,65682.0,65669.0,0.1]
[1727444146441,0.15528794,65682.0,65675.0,0.152263]
[1727444146638,0.15528794,65682.0,65671.0,0.304547]
[1727444146639,0.152261,65677.0,65671.0,0.304547]
[1727444146868,0.30448,65686.0,65672.0,0.304541]
[1727444146869,0.15528794,65676.0,65672.0,0.304541]
[1727444147073,0.15528794,65676.0,65668.0,0.0795]
[1727444147074,0.15528794,65676.0,65669.0,0.304555]
[1727444147312,0.15528794,65676.0,65673.0,0.152268]
[1727444147695,0.15528794,65676.0,65672.0,0.304543]
[1727444147899,0.17828794,65676.0,65675.0,0.152264]
[1727444148309,0.15828794,65676.0,65675.0,0.152264]
[1727444148519,0.008,65683.0,65682.0,0.152248]
[1727444148725,0.15528794,65683.0,65682.0,0.152248]
[1727444149372,0.15528794,65683.0,65675.0,0.304529]
[1727444149637,0.15528794,65682.0,65681.0,0.152251]
[1727444149868,0.15528794,65682.0,65667.0,0.100827]
[1727444149869,0.023,65681.0,65680.0,0.152252]
[1727444150019,0.17828794,65681.0,65680.0,0.152252]
[1727444150397,0.17828794,65681.0,65676.0,0.304523]
[1727444150591,0.15528794,65680.0,65677.0,0.304519]
[1727444150935,0.15528794,65680.0,65679.0,0.152255]
[1727444151753,0.15628794,65680.0,65679.0,0.152255]
[1727444151957,0.15528794,65680.0,65679.0,0.152255]
[1727444152187,0.15528794,65680.0,65675.0,0.000827]
[1727444152188,0.15528794,65680.0,65677.0,0.152258]
[1727444152393,0.15628794,65680.0,65676.0,0.304521]
[1727444152739,0.15628794,65680.0,65675.0,0.000827]
[1727444152740,0.15628794,65680.0,65679.0,0.152255]
[1727444153802,0.15528794,65680.0,65678.0,0.152257]
[1727444154034,0.15528794,65680.0,65677.0,0.304519]
[1727444154035,0.15528794,65680.0,65679.0,0.152255]
[1727444154494,0.15628794,65680.0,65679.0,0.152255]
[1727444154724,0.001,65680.0,65679.0,0.152255]
[1727444154974,0.001,65680.0,65679.0,0.229155]
[1727444155189,0.22790811,65691.0,65689.0,0.15223]
[1727444155190,0.023,65690.0,65689.0,0.15223]
[1727444155405,0.22790811,65691.0,65684.0,0.304485]
[1727444155406,0.22790811,65691.0,65690.0,0.15223]
[1727444155667,0.22790811,65709.0,65688.0,0.304468]
[1727444155668,0.25290811,65700.0,65688.0,0.19421581]
[1727444155882,0.25290811,65700.0,65692.0,0.152225]
[1727444155883,0.152218,65696.0,65692.0,0.152225]
[1727444156099,0.152218,65696.0,65683.0,0.0783]
[1727444156100,0.25290811,65700.0,65683.0,0.38279]
[1727444156312,0.152217,65696.0,65692.0,0.152225]
[1727444156950,0.34642781,65698.0,65691.0,0.304452]
[1727444157177,0.34642781,65698.0,65694.0,0.152219]
[1727444157388,0.49864181,65698.0,65691.0,0.304452]
[1727444157601,0.19421581,65698.0,65691.0,0.304452]
[1727444157815,0.023,65698.0,65683.0,0.38279]
[1727444158022,0.023,65695.0,65683.0,0.0783]
[1727444158231,0.30750894,65694.0,65689.0,0.304464]
[1727444158444,0.15528794,65694.0,65686.0,0.304476]
[1727444158654,0.15528794,65694.0,65690.0,0.15223]
[1727444158875,0.30750894,65694.0,65690.0,0.15223]
[1727444159129,0.30750894,65694.0,65683.0,0.0783]
[1727444159130,0.29121754,65691.0,65683.0,0.0783]
[1727444159378,0.023,65685.0,65677.0,0.075]
[1727444159590,0.29121754,65691.0,65677.0,0.075]
[1727444159591,0.023,65683.0,65680.0,0.152251]
[1727444159801,0.17828794,65682.0,65678.0,0.304515]
[1727444160018,0.15528794,65682.0,65677.0,0.075]
[1727444162280,0.304493,65683.0,65677.0,0.075]
[1727444162491,0.15528794,65682.0,65675.0,0.000827]
[1727444162672,0.175252,65681.0,65675.0,0.000827]
[1727444162917,0.15528794,65680.0,65677.0,0.152259]
[1727444163104,0.30754194,65680.0,65676.0,0.152262]
[1727444163336,0.30754194,65680.0,65675.0,0.000827]
[1727444163337,0.15528794,65680.0,65675.0,0.000827]
[1727444163542,0.152262,65676.0,65675.0,0.000827]
[1727444163747,0.33054994,65676.0,65675.0,0.000827]
[1727444164176,0.17828794,65676.0,65675.0,0.000827]
[1727444164634,0.17928794,65676.0,65675.0,0.000827]
[1727444165056,0.17928794,65676.0,65675.0,0.153091]
[1727444165526,0.15628794,65676.0,65675.0,0.153091]
[1727444165946,0.001,65676.0,65675.0,0.153091]
[1727444166154,0.001,65676.0,65675.0,0.15613597]
[1727444166379,0.001,65676.0,65675.0,0.153091]
[1727444166590,0.15628794,65676.0,65675.0,0.153091]
[1727444167767,0.18128794,65676.0,65675.0,0.153091]
[1727444168675,0.026,65676.0,65675.0,0.153091]
[1727444169333,0.001,65676.0,65675.0,0.128091]
[1727444170669,0.002,65676.0,65675.0,0.128091]
[1727444170906,0.001,65676.0,65675.0,0.128091]
[1727444171142,0.15628794,65676.0,65675.0,0.128091]
[1727444171361,0.15628794,65676.0,65675.0,0.152264]
[1727444171362,0.15728794,65676.0,65675.0,0.152264]
[1727444171801,0.002,65676.0,65675.0,0.152264]
[1727444173304,0.15728794,65676.0,65674.0,0.152267]
[1727444173535,0.15528794,65675.0,65674.0,0.152267]
[1727444174199,0.15528794,65675.0,65672.0,0.304542]
[1727444174422,0.15528794,65675.0,65670.0,0.0765]
[1727444174647,0.17828794,65675.0,65674.0,0.002]
[1727444174856,0.17928794,65675.0,65674.0,0.002]